fUSD/lending_fUSD_20250320
["ID","MTS","AMOUNT","RATE_DAILY","PERIOD"]
[356472257,1742506252234,-151.0,0.000249,7]
[356472258,1742506252244,-151.0,0.000249,7]
[356472259,1742506252255,-151.0,0.000249,7]
[356472260,1742506252266,-151.0,0.000249,7]
[356472261,1742506252277,-151.0,0.000249,7]
[356472262,1742506252286,-157.77688,0.000249,7]
[356472263,1742506252295,-151.0,0.000249,7]
[356472264,1742506252305,-229.334799,0.000249,7]
[356472265,1742506252315,-229.334799,0.000249,7]
[356472266,1742506252324,-316.412486,0.000249,7]
[356472267,1742506252334,-316.412486,0.000249,7]
[356472268,1742506252343,-400.0,0.000249,9]
[356472269,1742506252353,-151.0,0.000249,7]
[356472270,1742506252362,-151.0,0.000249,7]
[356472271,1742506252372,-151.0,0.000249,7]
[356472272,1742506252382,-2852.858928,0.000249,7]
[356472273,1742506252392,-2852.858928,0.000249,7]
[356472274,1742506252402,-338306.20381,0.000249,3]
[356472275,1742506252412,-151.0,0.000249,7]
[356472276,1742506252421,-151.0,0.000249,7]
[356472277,1742506252431,-151.276595,0.000249,7]
[356472278,1742506252441,-151.0,0.000249,7]
[356472279,1742506252451,-151.0,0.000249,7]
[356472280,1742506252461,-200.0,0.000249,9]
[356472281,1742506252471,-151.0,0.000249,7]
[356472282,1742506252481,-151.0,0.000249,7]
[356472283,1742506252492,-151.0,0.000249,7]
[356472284,1742506252501,-151.0,0.000249,7]
[356472285,1742506252511,-151.0,0.000249,7]
[356472286,1742506252521,-161.198674,0.000249,7]
[356472287,1742506252531,-161.198674,0.000249,7]
[356472288,1742506252541,-297.900214,0.000249,7]
[356472289,1742506252550,-297.900214,0.000249,7]
[356472290,1742506252560,-151.0,0.000249,7]
[356472291,1742506252570,-200.0,0.00025,2]
[356472292,1742506252580,-2918.57792804,0.00025,2]
[356472293,1742506252590,-1021.27078865,0.00025,2]
[356472294,1742506252600,-160.47269783,0.00025,2]
[356472295,1742506252610,-1000.0,0.00025,6]
[356472296,1742506252620,-1000.0,0.00025,6]
[356472297,1742506252631,-1000.0,0.00025,4]
[356472298,1742506252641,-199.05842172,0.00025,2]
[356472299,1742506252651,-1596.57520017,0.00025,2]
[356472300,1742506252661,-255.24615928,0.00025,2]
[356472301,1742506252671,-167.55114536,0.00025,2]
[356472302,1742506252681,-350.0,0.00025,2]
[356472303,1742506252691,-2000.0,0.00025,4]
[356472304,1742506252701,-11262.12462448,0.0002501,2]
[356472305,1742506252711,-3241.2454857,0.000251,2]
[356472306,1742506252721,-219.0,0.000251,2]
[356472307,1742506252730,-300.0,0.00025353,2]
[356472308,1742506252740,-151.453873,0.000254,7]
[356472309,1742506252750,-151.453873,0.000254,7]
[356472310,1742506252760,-151.0,0.000254,7]
[356472311,1742506252769,-151.0,0.000254,7]
[356472312,1742506252779,-1015.13,0.00025526,2]
[356472313,1742506252788,-188.02,0.00025548,2]
[356472314,1742506252797,-151.0,0.000257,7]
[356472315,1742506252808,-169.383532,0.000257,7]
[356472316,1742506252818,-283.611849,0.000257,7]
[356472317,1742506252827,-151.0,0.000257,7]
[356472318,1742506252838,-151.0,0.000257,7]
[356472319,1742506252847,-283.611849,0.000257,7]
[356472320,1742506252856,-152.773112,0.000257,7]
[356472321,1742506252866,-393.045796,0.000257,7]
[356472322,1742506252875,-393.045796,0.000257,7]
[356472323,1742506252885,-208992.0,0.000257,2]
[356472324,1742506252894,-151.0,0.000259,7]
[356472325,1742506252904,-151.0,0.000259,7]
[356472326,1742506252913,-151.0,0.000259,7]
[356472327,1742506252923,-151.0,0.000259,7]
[356472328,1742506252933,-151.0,0.000259,7]
[356472329,1742506252945,-575.14988112,0.0002599,2]
[356472330,1742506252956,-4433.65,0.00026,2]
[356472331,1742506252966,-4332.44895906,0.00026,2]
[356472332,1742506252975,-550.594901,0.00026,7]
[356472333,1742506252986,-550.594901,0.00026,7]
[356472334,1742506252996,-151.0,0.00026,7]
[356472335,1742506253007,-153.487853,0.00026,7]
[356472336,1742506253017,-153.487853,0.00026,7]
[356472337,1742506253028,-176.954312,0.00026,7]
[356472338,1742506253038,-176.954312,0.00026,7]
[356472339,1742506253047,-2000.0,0.00026,4]
[356472340,1742506253057,-352.91,0.00026027,2]
[356472341,1742506253066,-257.417978,0.000261,7]
[356472342,1742506253076,-229.334799,0.000261,7]
[356472343,1742506253086,-229.334799,0.000261,7]
[356472344,1742506253096,-316.412486,0.000261,7]
[356472345,1742506253105,-316.412486,0.000261,7]
[356472346,1742506253115,-151.0,0.000262,7]
[356472347,1742506253124,-151.0,0.000262,7]
[356472348,1742506253134,-151.0,0.000262,7]
[356472349,1742506253143,-151.0,0.000262,7]
[356472350,1742506253153,-151.0,0.000262,7]
[356472351,1742506253162,-160.687897,0.000262,7]
[356472352,1742506253172,-151.0,0.000263,7]
[356472353,1742506253182,-151.0,0.000263,7]
[356472354,1742506253191,-151.0,0.000263,7]
[356472355,1742506253201,-153.724699,0.000263,7]
[356472356,1742506253211,-151.0,0.000263,7]
[356472357,1742506253220,-151.0,0.000263,7]
[356472358,1742506253230,-26312.85393921,0.000264,2]
[356472359,1742506253240,-151.0,0.000264,7]
[356472360,1742506253249,-151.0,0.000264,7]
[356472361,1742506253259,-151.0,0.000264,7]
[356472362,1742506253268,-151.0,0.000264,7]
[356472363,1742506253278,-151.0,0.000264,7]
[356472364,1742506253287,-151.0,0.000264,7]
[356472365,1742506253296,-151.0,0.000264,7]
[356472366,1742506253306,-151.0,0.000264,7]
[356472367,1742506253315,-161.198674,0.000264,7]
[356472368,1742506253324,-161.198674,0.000264,7]
[356472369,1742506253334,-297.900214,0.000264,7]
[356472370,1742506253343,-297.900214,0.000264,7]
[356472371,1742506253352,-151.0,0.000264,7]
[356472372,1742506253362,-708.68,0.00026484,2]
[356472373,1742506253371,-296.279085,0.000265,7]
[356472374,1742506253381,-162.144259,0.000265,7]
[356472375,1742506253390,-245.014204,0.000265,7]
[356472376,1742506253400,-151.0,0.000265,7]
[356472377,1742506253409,-2852.858928,0.000265,7]
[356472378,1742506253419,-2852.858928,0.000265,7]
[356472379,1742506253429,-165.172522,0.000265,7]
[356472380,1742506253440,-5550.0,0.000265,3]
[356472381,1742506253452,-4562.96,0.00026591,2]
[356472382,1742506253463,-2483.31,0.00026591,2]
[356472383,1742506253473,-3616.94,0.00026591,2]
[356472384,1742506253483,-10200.83,0.00026591,2]
[356472385,1742506253493,-29008.59218867,0.00026696,2]
[356472386,1742506253503,-150.54,0.00026849,2]
[356472387,1742506253513,-365.74,0.00026849,2]
[356472388,1742506253523,-250.0,0.00027,2]
[356472389,1742506253534,-991.9902262,0.00027,2]
[356472390,1742506253543,-2000.0,0.00027,2]
[356472391,1742506253553,-400.0,0.00027,2]
[356472392,1742506253562,-2000.0,0.00027,4]
[356472393,1742506253572,-2143.296733,0.0002701,2]
[356472394,1742506253581,-3519.71,0.00027123,2]
[356472395,1742506253591,-5550.0,0.000273,5]
[356472396,1742506253601,-352.91,0.00027397,2]
[356472397,1742506253611,-8287.45,0.00027397,15]
[356472398,1742506253620,-495.61,0.00027397,2]
[356472399,1742506253629,-2238.13,0.00027397,2]
[356472400,1742506253639,-168.85616952,0.00027397,5]
[356472401,1742506253648,-150.06106268,0.00027471,5]
[356472402,1742506253658,-2000.0,0.00027493,2]
[356472403,1742506253668,-300.0,0.00027493,2]
[356472404,1742506253677,-192.63950119,0.000275,2]
[356472405,1742506253687,-7243.85830177,0.000275,2]
[356472406,1742506253696,-31080.73902208,0.0002778,2]
[356472407,1742506253706,-151.0,0.0002778,7]
[356472408,1742506253814,-151.0,0.0002778,7]
[356472409,1742506253825,-151.0,0.0002778,7]
[356472410,1742506253834,-151.0,0.0002778,7]
[356472411,1742506253844,-151.0,0.0002778,7]
[356472412,1742506253853,-151.0,0.0002778,7]
[356472413,1742506253863,-230.300282,0.0002778,7]
[356472414,1742506253873,-163.293184,0.0002778,7]
[356472415,1742506253882,-163.293184,0.0002778,7]
[356472416,1742506253891,-157.311974,0.0002778,7]
[356472417,1742506253900,-151.0,0.0002778,7]
[356472418,1742506253910,-151.453873,0.0002778,7]
[356472419,1742506253919,-151.453873,0.0002778,7]
[356472420,1742506253929,-151.0,0.0002778,7]
[356472421,1742506253939,-151.0,0.0002778,7]
[356472422,1742506253952,-151.0,0.0002778,7]
[356472423,1742506253961,-151.0,0.0002778,7]
[356472424,1742506253972,-151.0,0.0002778,7]
[356472425,1742506253983,-151.0,0.0002778,7]
[356472426,1742506253992,-160.687897,0.0002778,7]
[356472427,1742506254001,-1015.13,0.0002779,2]
[356472428,1742506254010,-224.936351,0.0002779,7]
[356472429,1742506254020,-151.0,0.0002779,7]
[356472430,1742506254031,-151.0,0.0002779,7]
[356472431,1742506254042,-177.584303,0.0002779,7]
[356472432,1742506254052,-151.0,0.0002779,7]
[356472433,1742506254061,-5347.83857111,0.00028,60]
[356472434,1742506254071,-2000.0,0.00028,4]
[356472435,1742506254081,-300.0,0.0002816,2]
[356472436,1742506254091,-188.02,0.00028493,2]
[356472437,1742506254100,-352.91,0.00028767,2]
[356472438,1742506254109,-2238.13,0.00028767,2]
[356472439,1742506254119,-450.0,0.00029,2]
[356472440,1742506254129,-2000.0,0.00029,4]
[356472441,1742506254138,-719.18737885,0.00029197,5]
[356472442,1742506254148,-500.0,0.00029197,5]
[356472443,1742506254157,-501.60570588,0.00029197,5]
[356472444,1742506254167,-150.0,0.00029325,2]
[356472445,1742506254176,-708.68,0.0002968,2]
[356472446,1742506254186,-1156.0,0.00029714,2]
[356472447,1742506254195,-150.0,0.00029737,2]
[356472448,1742506254205,-150.0,0.00029845,2]
[356472449,1742506254214,-8500.0,0.00029867,6]
[356472450,1742506254224,-8500.0,0.00029876,6]
[356472451,1742506254233,-8500.0,0.00029884,6]
[356472452,1742506254243,-8500.0,0.00029893,6]
[356472453,1742506254252,-1994.023942,0.000299,2]
[356472454,1742506254262,-151.0,0.00029902,7]
[356472455,1742506254271,-151.0,0.00029902,7]
[356472456,1742506254281,-151.0,0.00029902,7]
[356472457,1742506254290,-151.0,0.00029902,7]
[356472458,1742506254299,-151.0,0.00029902,7]
[356472459,1742506254309,-8500.0,0.00029902,6]
[356472460,1742506254318,-8500.0,0.00029911,6]
[356472461,1742506254327,-8500.0,0.0002992,6]
[356472462,1742506254337,-550.594901,0.0002992,7]
[356472463,1742506254346,-550.594901,0.0002992,7]
[356472464,1742506254355,-151.0,0.0002992,7]
[356472465,1742506254365,-153.487853,0.0002992,7]
[356472466,1742506254374,-153.487853,0.0002992,7]
[356472467,1742506254383,-176.954312,0.0002992,7]
[356472468,1742506254392,-176.954312,0.0002992,7]
[356472469,1742506254402,-229.334799,0.00029928,7]
[356472470,1742506254411,-229.334799,0.00029928,7]
[356472471,1742506254420,-316.412486,0.00029928,7]
[356472472,1742506254429,-316.412486,0.00029928,7]
[356472473,1742506254438,-8500.0,0.00029928,6]
[356472474,1742506254448,-2000.0,0.00029937,7]
[356472475,1742506254458,-2000.0,0.00029937,7]
[356472476,1742506254468,-2000.0,0.00029937,7]
[356472477,1742506254477,-2000.0,0.00029937,7]
[356472478,1742506254486,-1315.824837,0.00029937,7]
[356472479,1742506254495,-151.0,0.00029937,7]
[356472480,1742506254505,-2852.858928,0.00029937,7]
[356472481,1742506254515,-2852.858928,0.00029937,7]
[356472482,1742506254524,-8500.0,0.00029937,6]
[356472483,1742506254533,-154.312038,0.00029946,7]
[356472484,1742506254543,-8500.0,0.00029946,6]
[356472485,1742506254552,-8500.0,0.00029955,6]
[356472486,1742506254561,-8500.0,0.00029964,6]
[356472487,1742506254570,-151.0,0.00029964,7]
[356472488,1742506254580,-151.0,0.00029964,7]
[356472489,1742506254589,-151.0,0.00029964,7]
[356472490,1742506254599,-151.0,0.00029964,7]
[356472491,1742506254608,-151.0,0.00029964,7]
[356472492,1742506254617,-151.0,0.00029964,7]
[356472493,1742506254627,-151.0,0.00029964,7]
[356472494,1742506254637,-161.198674,0.00029964,7]
[356472495,1742506254647,-161.198674,0.00029964,7]
[356472496,1742506254656,-297.900214,0.00029964,7]
[356472497,1742506254666,-297.900214,0.00029964,7]
[356472498,1742506254675,-8500.0,0.00029972,6]
[356472499,1742506254684,-8500.0,0.00029981,6]
[356472500,1742506254694,-227.44907896,0.0002999,2]
[356472501,1742506254703,-8500.0,0.0002999,6]
[356472502,1742506254712,-151.0,0.0002999,7]
[356472503,1742506254722,-283.611849,0.0002999,7]
[356472504,1742506254732,-151.0,0.0002999,7]
[356472505,1742506254741,-151.0,0.0002999,7]
[356472506,1742506254753,-283.611849,0.0002999,7]
[356472507,1742506254762,-393.045796,0.0002999,7]
[356472508,1742506254774,-393.045796,0.0002999,7]
[356472509,1742506254783,-8500.0,0.00029991,6]
[356472510,1742506254793,-8500.0,0.00029999,6]
[356472511,1742506254802,-1739.34556846,0.0003,2]
[356472512,1742506254811,-1535.88871643,0.0003,2]
[356472513,1742506254820,-950.05644629,0.0003,2]
[356472514,1742506254829,-2265.92018595,0.0003,2]
[356472515,1742506254838,-11548.919,0.0003,2]
[356472516,1742506254847,-505.54393325,0.0003,2]
[356472517,1742506254856,-150.0,0.00030041,2]
[356472518,1742506254864,-1015.13,0.00030054,2]
[356472519,1742506254873,-150.0,0.00030088,2]
[356472520,1742506254882,-150.0,0.0003011,2]
[356472521,1742506254892,-150.0,0.00030118,2]
[356472522,1742506254901,-352.91,0.00030136,2]
[356472523,1742506254910,-2238.13,0.00030137,2]
[356472524,1742506254919,-154.98427098,0.00030137,5]
[356472525,1742506254928,-150.0,0.00030169,2]
[356472526,1742506254937,-150.0,0.00030178,2]
[356472527,1742506254950,-150.0,0.00030179,2]
[356472528,1742506254959,-150.0,0.00030195,2]
[356472529,1742506254968,-150.0,0.00030196,2]
[356472530,1742506254977,-150.0,0.00030209,2]
[356472531,1742506254988,-150.0,0.00030219,2]
[356472532,1742506254998,-150.0,0.00030219,2]
[356472533,1742506255007,-150.0,0.00030232,2]
[356472534,1742506255017,-150.0,0.00030233,2]
[356472535,1742506255028,-150.0,0.00030273,2]
[356472536,1742506255037,-150.0,0.00030299,2]
[356472537,1742506255046,-2000.0,0.000303,2]
[356472538,1742506255055,-300.0,0.000303,2]
[356472539,1742506255063,-150.0,0.00030304,2]
[356472540,1742506255072,-150.0,0.00030306,2]
[356472541,1742506255081,-150.0,0.00030307,2]
[356472542,1742506255091,-150.0,0.00030331,2]
[356472543,1742506255100,-150.0,0.00030338,2]
[356472544,1742506255109,-150.0,0.00030354,2]
[356472545,1742506255118,-150.0,0.00030411,2]
[356472546,1742506255128,-150.0,0.00030452,2]
[356472547,1742506255137,-150.0,0.00030459,2]
[356472548,1742506255146,-150.0,0.00030462,2]
[356472549,1742506255155,-150.0,0.00030465,2]
[356472550,1742506255165,-150.0,0.00030469,2]
[356472551,1742506255174,-150.0,0.00030491,2]
[356472552,1742506255184,-150.0,0.00030493,2]
[356472553,1742506255194,-253.78651213,0.00030521,2]
[356472554,1742506255203,-150.0,0.00030521,2]
[356472555,1742506255213,-150.0,0.00030534,2]
[356472556,1742506255223,-150.0,0.00030538,2]
[356472557,1742506255232,-150.0,0.00030539,2]
[356472558,1742506255242,-150.0,0.00030574,2]
[356472559,1742506255251,-1000.0,0.00030591,2]
[356472560,1742506255260,-1000.0,0.00030688,2]
[356472561,1742506255270,-150.0,0.00030688,2]
[356472562,1742506255279,-150.0,0.00030716,2]
[356472563,1742506255289,-150.0,0.00030733,2]
[356472564,1742506255299,-1000.0,0.00030755,2]
[356472565,1742506255308,-1000.0,0.00030756,2]
[356472566,1742506255318,-150.0,0.00030797,2]
[356472567,1742506255327,-1000.0,0.00030811,2]
[356472568,1742506255337,-150.0,0.00030817,2]
[356472569,1742506255346,-150.0,0.00030823,2]
[356472570,1742506255356,-150.0,0.00030831,2]
[356472571,1742506255452,-150.0,0.00030837,2]
[356472572,1742506255462,-150.0,0.0003085,2]
[356472573,1742506255473,-150.0,0.00030865,2]
[356472574,1742506255482,-150.0,0.00030869,2]
[356472575,1742506255492,-194.4406,0.00030888,7]
[356472576,1742506255501,-150.0,0.00030897,2]
[356472577,1742506255511,-150.0,0.00030902,2]
[356472578,1742506255520,-150.0,0.00030908,2]
[356472579,1742506255529,-150.0,0.00030913,2]
[356472580,1742506255538,-150.0,0.00030918,2]
[356472581,1742506255546,-1000.0,0.00030933,2]
[356472582,1742506255555,-150.0,0.00030944,2]
[356472583,1742506255565,-1000.0,0.00030956,2]
[356472584,1742506255575,-150.0,0.00030961,2]
[356472585,1742506255584,-300.0,0.00030967,2]
[356472586,1742506255593,-150.0,0.00030969,2]
[356472587,1742506255603,-150.0,0.00030975,2]
[356472588,1742506255612,-1000.0,0.00030985,2]
[356472589,1742506255621,-150.0,0.00030989,2]
[356472590,1742506255630,-500.0,0.00031,2]
[356472591,1742506255639,-150.0,0.00031,2]
[356472592,1742506255649,-153.0,0.00031,2]
[356472593,1742506255658,-150.0,0.00031014,2]
[356472594,1742506255667,-151.453873,0.0003103,7]
[356472595,1742506255676,-151.453873,0.0003103,7]
[356472596,1742506255685,-151.0,0.0003103,7]
[356472597,1742506255694,-151.0,0.0003103,7]
[356472598,1742506255704,-151.0,0.0003103,7]
[356472599,1742506255713,-151.0,0.0003103,7]
[356472600,1742506255723,-222.624677,0.0003103,7]
[356472601,1742506255732,-151.0,0.0003103,7]
[356472602,1742506255741,-160.687897,0.0003103,7]
[356472603,1742506255750,-160.687897,0.0003103,7]
[356472604,1742506255759,-150.0,0.00031042,2]
[356472605,1742506255767,-150.0,0.00031049,2]
[356472606,1742506255777,-150.0,0.0003105,2]
[356472607,1742506255786,-1000.0,0.00031055,2]
[356472608,1742506255795,-150.0,0.00031061,2]
[356472609,1742506255804,-150.0,0.00031064,2]
[356472610,1742506255813,-1000.0,0.0003107,2]
[356472611,1742506255822,-150.0,0.0003108,2]
[356472612,1742506255832,-1000.0,0.00031084,2]
[356472613,1742506255841,-150.0,0.0003109,2]
[356472614,1742506255850,-150.0,0.00031097,2]
[356472615,1742506255859,-150.0,0.00031099,2]
[356472616,1742506255868,-150.0,0.00031108,2]
[356472617,1742506255877,-150.0,0.00031109,2]
[356472618,1742506255886,-150.0,0.00031115,2]
[356472619,1742506255896,-150.0,0.00031145,2]
[356472620,1742506255905,-150.0,0.00031148,2]
[356472621,1742506255914,-150.0,0.00031152,2]
[356472622,1742506255923,-150.0,0.00031162,2]
[356472623,1742506255933,-442.66,0.00031187,2]
[356472624,1742506255944,-345.87,0.00031187,2]
[356472625,1742506255954,-442.66,0.00031187,2]
[356472626,1742506255963,-797.73,0.00031187,2]
[356472627,1742506255973,-442.66,0.00031187,2]
[356472628,1742506255983,-442.66,0.00031187,2]
[356472629,1742506255994,-442.66,0.00031187,2]
[356472630,1742506256003,-895.2,0.00031187,2]
[356472631,1742506256012,-150.0,0.00031207,2]
[356472632,1742506256023,-54550.65266097,0.0003121,2]
[356472633,1742506256031,-550.594901,0.0003121,7]
[356472634,1742506256040,-550.594901,0.0003121,7]
[356472635,1742506256050,-151.0,0.0003121,7]
[356472636,1742506256059,-153.487853,0.0003121,7]
[356472637,1742506256068,-153.487853,0.0003121,7]
[356472638,1742506256077,-176.954312,0.0003121,7]
[356472639,1742506256087,-176.954312,0.0003121,7]
[356472640,1742506256096,-151.0,0.0003121,7]
[356472641,1742506256105,-151.0,0.0003121,7]
[356472642,1742506256115,-151.0,0.0003121,7]
[356472643,1742506256125,-2499.999999,0.0003121,2]
[356472644,1742506256134,-150.0,0.00031214,2]
[356472645,1742506256143,-150.0,0.00031215,2]
[356472646,1742506256152,-150.0,0.00031234,2]
[356472647,1742506256162,-150.0,0.00031256,2]
[356472648,1742506256171,-150.0,0.00031258,2]
[356472649,1742506256180,-150.0,0.00031265,2]
[356472650,1742506256189,-150.0,0.00031265,2]
[356472651,1742506256199,-150.0,0.00031268,2]
[356472652,1742506256209,-1000.0,0.00031269,2]
[356472653,1742506256218,-150.0,0.00031281,2]
[356472654,1742506256228,-150.0,0.00031283,2]
[356472655,1742506256237,-1000.0,0.00031286,2]
[356472656,1742506256247,-150.0,0.00031302,2]
[356472657,1742506256257,-150.0,0.00031311,2]
[356472658,1742506256266,-150.0,0.00031317,2]
[356472659,1742506256276,-157.61528155,0.00031321,2]
[356472660,1742506256285,-150.0,0.00031321,2]
[356472661,1742506256295,-167.83,0.00031324,2]
[356472662,1742506256304,-305.84,0.00031324,2]
[356472663,1742506256314,-150.0,0.00031331,2]
[356472664,1742506256323,-1084.40862888,0.00031342,2]
[356472665,1742506256332,-200.0,0.00031342,2]
[356472666,1742506256341,-150.0,0.00031347,2]
[356472667,1742506256351,-680.65,0.0003135,2]
[356472668,1742506256360,-1000.0,0.00031351,2]
[356472669,1742506256370,-150.0,0.00031351,2]
[356472670,1742506256379,-680.65,0.00031358,2]
[356472671,1742506256389,-150.0,0.00031361,2]
[356472672,1742506256399,-680.65,0.00031367,2]
[356472673,1742506256408,-150.0,0.00031372,2]
[356472674,1742506256418,-680.66,0.00031375,2]
[356472675,1742506256427,-150.0,0.00031375,2]
[356472676,1742506256437,-150.0,0.00031392,2]
[356472677,1742506256448,-150.0,0.00031412,2]
[356472678,1742506256457,-150.0,0.00031438,2]
[356472679,1742506256468,-1000.0,0.00031451,2]
[356472680,1742506256478,-150.0,0.00031454,2]
[356472681,1742506256488,-150.0,0.00031459,2]
[356472682,1742506256497,-230.46115118,0.00031459,2]
[356472683,1742506256507,-150.0,0.0003148,2]
[356472684,1742506256516,-150.0,0.00031487,2]
[356472685,1742506256526,-150.0,0.00031494,2]
[356472686,1742506256535,-229.334799,0.00031506,7]
[356472687,1742506256544,-229.334799,0.00031506,7]
[356472688,1742506256553,-316.412486,0.00031506,7]
[356472689,1742506256562,-316.412486,0.00031506,7]
[356472690,1742506256572,-352.91,0.00031506,2]
[356472691,1742506256581,-2238.13,0.00031507,2]
[356472692,1742506256590,-150.0,0.00031507,2]
[356472693,1742506256600,-1963.48824598,0.00031517,30]
[356472694,1742506256609,-150.0,0.00031518,2]
[356472695,1742506256619,-150.0,0.00031518,2]
[356472696,1742506256628,-999.999999,0.00031518,2]
[356472697,1742506256638,-200.0,0.00031524,2]
[356472698,1742506256647,-200.0,0.00031655,2]
[356472699,1742506256657,-200.0,0.00031839,2]
[356472700,1742506256665,-163.293184,0.00032146,7]
[356472701,1742506256675,-163.293184,0.00032146,7]
[356472702,1742506256684,-429.26,0.00032146,2]
[356472703,1742506256694,-902.94,0.00032146,2]
[356472704,1742506256703,-200.0,0.00032158,2]
[356472705,1742506256711,-1006.48127833,0.00032162,30]
[356472706,1742506256721,-1015.13,0.00032318,2]
[356472707,1742506256730,-200.0,0.00032479,2]
[356472708,1742506256739,-365.74,0.00032646,2]
[356472709,1742506256750,-151.0,0.00032646,7]
[356472710,1742506256762,-2852.858928,0.00032646,7]
[356472711,1742506256772,-2852.858928,0.00032646,7]
[356472712,1742506256782,-1000.0,0.00032649,30]
[356472713,1742506256792,-151.0,0.0003283,7]
[356472714,1742506256802,-151.0,0.0003283,7]
[356472715,1742506256811,-151.0,0.0003283,7]
[356472716,1742506256825,-151.0,0.0003283,7]
[356472717,1742506256834,-151.0,0.0003283,7]
[356472718,1742506256844,-1000.0,0.00032867,30]
[356472719,1742506256853,-151.0,0.00032867,7]
[356472720,1742506256863,-151.0,0.00032867,7]
[356472721,1742506256956,-352.91,0.00032876,2]
[356472722,1742506256966,-438.59020075,0.00032876,2]
[356472723,1742506256977,-401.56774303,0.00032876,2]
[356472724,1742506256987,-490.96797438,0.00032876,2]
[356472725,1742506256997,-483.8386214,0.00032876,2]
[356472726,1742506257007,-410.52252842,0.00032876,2]
[356472727,1742506257016,-500.0,0.00032876,2]
[356472728,1742506257026,-500.0,0.00032876,2]
[356472729,1742506257035,-500.0,0.00032876,2]
[356472730,1742506257045,-500.0,0.00032876,2]
[356472731,1742506257055,-500.0,0.00032876,2]
[356472732,1742506257064,-500.0,0.00032876,2]
[356472733,1742506257076,-500.0,0.00032876,2]
[356472734,1742506257085,-500.0,0.00032876,2]
[356472735,1742506257094,-500.0,0.00032876,2]
[356472736,1742506257104,-500.0,0.00032876,2]
[356472737,1742506257114,-500.0,0.00032876,2]
[356472738,1742506257124,-500.0,0.00032876,2]
[356472739,1742506257133,-500.0,0.00032876,2]
[356472740,1742506257142,-500.0,0.00032876,2]
[356472741,1742506257152,-500.0,0.00032876,2]
[356472742,1742506257162,-500.0,0.00032876,2]
[356472743,1742506257172,-500.0,0.00032876,2]
[356472744,1742506257182,-500.0,0.00032876,2]
[356472745,1742506257191,-500.0,0.00032876,2]
[356472746,1742506257201,-500.0,0.00032876,2]
[356472747,1742506257210,-500.0,0.00032876,2]
[356472748,1742506257219,-500.0,0.00032876,2]
[356472749,1742506257228,-500.0,0.00032876,2]
[356472750,1742506257237,-500.0,0.00032876,2]
[356472751,1742506257247,-500.0,0.00032876,2]
[356472752,1742506257256,-500.0,0.00032876,2]
[356472753,1742506257266,-500.0,0.00032876,2]
[356472754,1742506257275,-500.0,0.00032876,2]
[356472755,1742506257284,-500.0,0.00032876,2]
[356472756,1742506257293,-500.0,0.00032876,2]